Workbook

Sheet INFORME 6
A1: AMÉRICA MÓVIL PERÚ S.A.C.
A3: INFORME 6: INGRESOS OPERATIVOS MAYORISTAS POR EMPRESA
A5: Periodo de reporte: Enero a Diciembre 2016
A7: Expresado en Miles de Nuevos Soles | C7: Ingresos calculados (en base a precios de lista) | D7: Ajustes (descuentos y promociones) | E7: Estado de Resultados de Contabilidad Separada (valor facturado) | F7: Nota
A8: INGRESOS OPERATIVOS MAYORISTAS | C8: =+C9+C13+C64+C65 -> 462676.5936 | D8: =+D9+D13+D64+D65 -> 0 | E8: =+E9+E13+E64+E65 -> 462676.5936
A9: De empresas operadoras vinculadas | C9: =+C10 -> 24468.47961 | D9: =+D10 -> 0 | E9: 24468.47961
A10: GRUPO OLO (OLO + CABLEVISION + TVS + VELATEL) | C10: =+C11+C12 -> 24468.47961 | D10: =+D11+D12 -> 0 | E10: 24468.47961
B11: Terminación de Llamadas en la Red del Servicio de Telefonía Fija Local | C11: 0.269614 | D11: 0 | E11: =+C11-D11 -> 0.269614
B12: Otros | C12: 24468.21 | D12: 0 | E12: 24468.21
A13: De empresas operadoras no vinculadas | C13: =+C14+C24+C34+C44+C54 -> 366555.7628 | D13: =+D14+D24+D34+D44+D54 -> 0 | E13: 366555.7628
A14: TELEFÓNICA DEL PERÚ S.A.A. | C14: =+SUM(C15:C23) -> 223617.7818 | D14: =+SUM(D15:D23) -> 0 | E14: 223617.7818
B15: Transporte Conmutado Local | C15: 0 | D15: 0 | E15: =+C15-D15 -> 0
B16: Transporte Conmutado de Larga Distancia Nacional | C16: 28.389052 | D16: 0 | E16: 28.389052
B17: Acceso a los Teléfonos de Uso Público | C17: 21.259772 | D17: 0 | E17: 21.259772
B18: Terminación de Llamadas en la Red de Servicio Móvil | C18: 209456.3065 | D18: 0 | E18: 209456.3065
B19: Terminación de Llamadas en la Red del Servicio de Telefonía Fija Local | C19: 4970.322779 | D19: 0 | E19: 4970.322779
B20: Facturación y Recaudación | C20: 0 | D20: 0 | E20: 0
B21: Adecuación de Red | C21: 874.27169 | D21: 0 | E21: 874.27169
B22: Acceso a la Plataforma de Pago | C22: 48.951569 | D22: 0 | E22: 48.951569
B23: Enlaces de Interconexión | C23: 8218.280438 | D23: 0 | E23: 8218.280438
A24: ENTEL PERÚ | C24: =+SUM(C25:C33) -> 105451.4348 | D24: =+SUM(D25:D33) -> 0 | E24: 105451.4348
B25: Transporte Conmutado Local | C25: 4.271734 | D25: 0 | E25: =+C25-D25 -> 4.271734
B26: Transporte Conmutado de Larga Distancia Nacional | C26: 301.880448 | D26: 0 | E26: 301.880448
B27: Acceso a los Teléfonos de Uso Público | C27: 0 | D27: 0 | E27: 0
B28: Terminación de Llamadas en la Red de Servicio Móvil | C28: 102863.3588 | D28: 0 | E28: 102863.3588
B29: Terminación de Llamadas en la Red del Servicio de Telefonía Fija Local | C29: 1689.545367 | D29: 0 | E29: 1689.545367
B30: Facturación y Recaudación | C30: 0 | D30: 0 | E30: 0
B31: Adecuación de Red | C31: 306.17556 | D31: 0 | E31: 306.17556
B32: Acceso a la Plataforma de Pago | C32: 0 | D32: 0 | E32: 0
B33: Enlaces de Interconexión | C33: 286.20289 | D33: 0 | E33: 286.20289
A34: VIETTEL PERÚ S.A.C. | C34: =+SUM(C35:C43) -> 25262.88087 | D34: =+SUM(D35:D43) -> 0 | E34: 25262.88087
B35: Transporte Conmutado Local | C35: 0.011627 | D35: 0 | E35: =+C35-D35 -> 0.011627
B36: Transporte Conmutado de Larga Distancia Nacional | C36: 139.804121 | D36: 0 | E36: 139.804121
B37: Acceso a los Teléfonos de Uso Público | C37: 0 | D37: 0 | E37: 0
B38: Terminación de Llamadas en la Red de Servicio Móvil | C38: 24369.36824 | D38: 0 | E38: 24369.36824
B39: Terminación de Llamadas en la Red del Servicio de Telefonía Fija Local | C39: 180.939714 | D39: 0 | E39: 180.939714
B40: Facturación y Recaudación | C40: 0 | D40: 0 | E40: 0
B41: Adecuación de Red | C41: 572.75717 | D41: 0 | E41: 572.75717
B42: Acceso a la Plataforma de Pago | C42: 0 | D42: 0 | E42: 0
B43: Enlaces de Interconexión | C43: 0 | D43: 0 | E43: 0
A44: VIRGIN MOBILE PERÚ S.A. | C44: =+SUM(C45:C53) -> 83.506253 | D44: =+SUM(D45:D53) -> 0 | E44: 83.506253
B45: Transporte Conmutado Local | C45: 0 | D45: 0 | E45: =+C45-D45 -> 0
B46: Transporte Conmutado de Larga Distancia Nacional | C46: 0 | D46: 0 | E46: 0
B47: Acceso a los Teléfonos de Uso Público | C47: 0 | D47: 0 | E47: 0
B48: Terminación de Llamadas en la Red de Servicio Móvil | C48: 82.914429 | D48: 0 | E48: 82.914429
B49: Terminación de Llamadas en la Red del Servicio de Telefonía Fija Local | C49: 0.591824 | D49: 0 | E49: 0.591824
B50: Facturación y Recaudación | C50: 0 | D50: 0 | E50: 0
B51: Adecuación de Red | C51: 0 | D51: 0 | E51: 0
B52: Acceso a la Plataforma de Pago | C52: 0 | D52: 0 | E52: 0
B53: Enlaces de Interconexión | C53: 0 | D53: 0 | E53: 0
A54: OTROS OPERADORES | C54: =+SUM(C55:C63) -> 12140.15903 | D54: =+SUM(D55:D63) -> 0 | E54: 12140.15903
B55: Transporte Conmutado Local | C55: 15.945149 | D55: 0 | E55: =+C55-D55 -> 15.945149
B56: Transporte Conmutado de Larga Distancia Nacional | C56: 89.015847 | D56: 0 | E56: 89.015847
B57: Acceso a los Teléfonos de Uso Público | C57: 4.316637 | D57: 0 | E57: 4.316637
B58: Terminación de Llamadas en la Red de Servicio Móvil | C58: 1733.847796 | D58: 0 | E58: 1733.847796
B59: Terminación de Llamadas en la Red del Servicio de Telefonía Fija Local | C59: 197.858684 | D59: 0 | E59: 197.858684
B60: Facturación y Recaudación | C60: 22.397961 | D60: 0 | E60: 22.397961
B61: Adecuación de Red | C61: 12.4896 | D61: 0 | E61: 12.4896
B62: Acceso a la Plataforma de Pago | C62: 119.037999 | D62: 0 | E62: 119.037999
B63: Enlaces de Interconexión | C63: 9945.24936 | D63: 0 | E63: 9945.24936
A64: De redes internacionales | C64: 44957.34777 | D64: 0 | E64: 44957.34777
A65: Otros | C65: 26695.00346 | D65: 0 | E65: 26695.00346
A66: Ingreso Imputado | C66: No aplica | D66: No aplica | E66: No aplica
B68: (*) Nota: en el presente informe se consideran los siguientes conceptos:
B69: ----> Sección "De empresas operadoras vinculadas": las categorías de ingreso que contengan operaciones con empresas afiliadas del mismo grupo.
B70: ----> Sección "De empresas operadoras no vinculadas": las categorías relacionadas a la línea de negocio de Interconexión, a excepción de aquellos conceptos relacionados a originación internacional.
B71: ----> Sección "De redes internacionales": las categorías relacionadas a la línea de negocio de Interconexión que incluyen componente de originación internacional (Categorías 56 y 57) y las componentes de Tránsito de Redes Internacional, la cual se encuentra incluida en la categoría 62.
B72: ----> Sección "Otros": las categorías 48 y 50 y las componentes de Tránsito de Redes Saliente Internacional y otros conceptos asociados al negocio mayorista (Liquidación por Cascada, Interoperabilidad, Llamada por Llamada, etc). Estas dos últimas componentes se encuentra incluidas en la categoría 62.
